{"text_format":"3","workbook":"xlsx","n_sheets":2,"sheets":["Sledovanie úbytku hmotnosti","výpočty"],"not_rendered":{"charts":1,"defined_names":7},"read":"whole","date_system":"1900"}

{"sheet":"Sledovanie úbytku hmotnosti","index":0,"n_rows":129,"n_cols":11,"rows_kept":129,"merged":[[0,5,0,9],[1,5,3,9]]}
[null,"CIEĽOVÁ HMOTNOSŤ","ZOBRAZENIE GRAFU",null,null," PETRINA REDUKCIA VÁHY"]
[{"$nulls":5},"SLEDOVANIE"]
[null,{"v":172,"d":"172.0"},"TÝŽDEŇ",{"$nulls":7}," "]
[]
[]
[{"$nulls":10}," "]
{"$rows_empty":18}
[null,"DÁTUM","HMOTNOSŤ"]
[null,"2012-11-30",{"v":176,"d":"176.0"}]
[null,"2012-12-07",{"v":176,"d":"176.0"}]
[null,"2012-12-14",177.6]
[null,"2012-12-21",176.5]
[null,"2012-12-28",176.1]
[null,"2013-01-04",{"v":174,"d":"174.0"}]
[null,"2013-01-11",{"v":173,"d":"173.0"}]
[null,"2013-01-18",{"v":172,"d":"172.0"}]
[null,"2013-01-25",{"v":172,"d":"172.0"}]
[null,"2013-02-01",{"v":173,"d":"173.0"}]
[null,"2013-02-08",{"v":174,"d":"174.0"}]
[null,"2013-02-15",{"v":175,"d":"175.0"}]
[null,"2013-02-22"]
[null,"2013-03-01"]
[null,"2013-03-08"]
[null,"2013-03-15"]
[null,"2013-03-22"]
[null,"2013-03-29"]
[null,"2013-04-05"]
[null,"2013-04-12"]
[null,"2013-04-19"]
[null,"2013-04-26"]
[null,"2013-05-03"]
[null,"2013-05-10"]
[null,"2013-05-17"]
[null,"2013-05-24"]
[null,"2013-05-31"]
[null,"2013-06-07"]
[null,"2013-06-14"]
[null,"2013-06-21"]
[null,"2013-06-28"]
[null,"2013-07-05"]
[null,"2013-07-12"]
[null,"2013-07-19"]
[null,"2013-07-26"]
[null,"2013-08-02"]
[null,"2013-08-09"]
[null,"2013-08-16"]
[null,"2013-08-23"]
[null,"2013-08-30"]
[null,"2013-09-06"]
[null,"2013-09-13"]
[null,"2013-09-20"]
[null,"2013-09-27"]
[null,"2013-10-04"]
[null,"2013-10-11"]
[null,"2013-10-18"]
[null,"2013-10-25"]
[null,"2013-11-01"]
[null,"2013-11-08"]
[null,"2013-11-15"]
[null,"2013-11-22"]
[null,"2013-11-29"]
[null,"2013-12-06"]
[null,"2013-12-13"]
[null,"2013-12-20"]
[null,"2013-12-27"]
[null,"2014-01-03"]
[null,"2014-01-10"]
[null,"2014-01-17"]
[null,"2014-01-24"]
[null,"2014-01-31"]
[null,"2014-02-07"]
[null,"2014-02-14"]
[null,"2014-02-21"]
[null,"2014-02-28"]
[null,"2014-03-07"]
[null,"2014-03-14"]
[null,"2014-03-21"]
[null,"2014-03-28"]
[null,"2014-04-04"]
[null,"2014-04-11"]
[null,"2014-04-18"]
[null,"2014-04-25"]
[null,"2014-05-02"]
[null,"2014-05-09"]
[null,"2014-05-16"]
[null,"2014-05-23"]
[null,"2014-05-30"]
[null,"2014-06-06"]
[null,"2014-06-13"]
[null,"2014-06-20"]
[null,"2014-06-27"]
[null,"2014-07-04"]
[null,"2014-07-11"]
[null,"2014-07-18"]
[null,"2014-07-25"]
[null,"2014-08-01"]
[null,"2014-08-08"]
[null,"2014-08-15"]
[null,"2014-08-22"]
[null,"2014-08-29"]
[null,"2014-09-05"]
[null,"2014-09-12"]
[null,"2014-09-19"]
[null,"2014-09-26"]
[null,"2014-10-03"]
[null,"2014-10-10"]
[null,"2014-10-17"]
[null,"2014-10-24"]
[null,"2014-10-31"]
[null,"2014-11-07"]
[null,"2014-11-14"]
[null,"2014-11-21"]

{"sheet":"výpočty","index":1,"n_rows":108,"n_cols":17,"rows_kept":108,"hidden":true}
["***  Hárok, ktorý zostane skrytý ***"]
[]
[{"$f":"COUNTIF(A5:A108,FALSE)","v":13},"Obdobia","Hodnoty",{"$nulls":3},{"$f":"COUNTIF(H5:H28,\">\"&0)","v":4},"Obdobia",null,"Hodnoty"]
[null,"Týždeň",null,null,true,null,null,"Mesiac","Koniec mesiaca"]
[{"$f":"IF(('Sledovanie úbytku hmotnosti'!C26=0)*('Sledovanie úbytku hmotnosti'!C25=0),TRUE)","v":false},{"$f":"IF(A5,0,IF('Sledovanie úbytku hmotnosti'!B26=0,'Sledovanie úbytku hmotnosti'!B25+5,'Sledovanie úbytku hmotnosti'!B26))","v":"2012-11-30"},{"$f":"'Sledovanie úbytku hmotnosti'!C26","v":176},{"$f":"MIN(GrafObdobí)","v":"2012-11-30"},{"$f":"IF($E$4,CieľováHmotnosť,NA())","v":172},null,null,{"$f":"DATE(YEAR(B5),MONTH(B5),1)","v":"2012-11-01"},{"$f":"EOMONTH(H5,0)","v":"2012-11-30"},{"$f":"IFERROR(AVERAGEIFS(TabuľkaHmotnosti[HMOTNOSŤ],TabuľkaHmotnosti[DÁTUM],\">=\"&H5,TabuľkaHmotnosti[DÁTUM],\"<=\"&I5),NA())","v":176}]
[{"$f":"IF(('Sledovanie úbytku hmotnosti'!C27=0)*('Sledovanie úbytku hmotnosti'!C26=0),TRUE)","v":false},{"$f":"IF(A6,0,IF('Sledovanie úbytku hmotnosti'!B27=0,'Sledovanie úbytku hmotnosti'!B26+5,'Sledovanie úbytku hmotnosti'!B27))","v":"2012-12-07"},{"$f":"'Sledovanie úbytku hmotnosti'!C27","v":176},{"$f":"MAX(GrafObdobí)","v":"2013-02-22"},172,null,null,{"$f":"IF(I5+1>MAX($B:$B),NA(),I5+1)","v":"2012-12-01"},"2012-12-31",{"$f":"IFERROR(AVERAGEIFS(TabuľkaHmotnosti[HMOTNOSŤ],TabuľkaHmotnosti[DÁTUM],\">=\"&H6,TabuľkaHmotnosti[DÁTUM],\"<=\"&I6),NA())","v":176.55}]
[{"$f":"IF(('Sledovanie úbytku hmotnosti'!C28=0)*('Sledovanie úbytku hmotnosti'!C27=0),TRUE)","v":false},{"$f":"IF(A7,0,IF('Sledovanie úbytku hmotnosti'!B28=0,'Sledovanie úbytku hmotnosti'!B27+5,'Sledovanie úbytku hmotnosti'!B28))","v":"2012-12-14"},{"$f":"'Sledovanie úbytku hmotnosti'!C28","v":177.6},{"$nulls":4},{"$f":"IF(I6+1>MAX($B:$B),NA(),I6+1)","v":"2013-01-01"},"2013-01-31",{"$f":"IFERROR(AVERAGEIFS(TabuľkaHmotnosti[HMOTNOSŤ],TabuľkaHmotnosti[DÁTUM],\">=\"&H7,TabuľkaHmotnosti[DÁTUM],\"<=\"&I7),NA())","v":172.75}]
[{"$f":"IF(('Sledovanie úbytku hmotnosti'!C29=0)*('Sledovanie úbytku hmotnosti'!C28=0),TRUE)","v":false},{"$f":"IF(A8,0,IF('Sledovanie úbytku hmotnosti'!B29=0,'Sledovanie úbytku hmotnosti'!B28+5,'Sledovanie úbytku hmotnosti'!B29))","v":"2012-12-21"},{"$f":"'Sledovanie úbytku hmotnosti'!C29","v":176.5},{"$nulls":4},"2013-02-01","2013-02-28",{"$f":"IFERROR(AVERAGEIFS(TabuľkaHmotnosti[HMOTNOSŤ],TabuľkaHmotnosti[DÁTUM],\">=\"&H8,TabuľkaHmotnosti[DÁTUM],\"<=\"&I8),NA())","v":174}]
[{"$f":"IF(('Sledovanie úbytku hmotnosti'!C30=0)*('Sledovanie úbytku hmotnosti'!C29=0),TRUE)","v":false},{"$f":"IF(A9,0,IF('Sledovanie úbytku hmotnosti'!B30=0,'Sledovanie úbytku hmotnosti'!B29+5,'Sledovanie úbytku hmotnosti'!B30))","v":"2012-12-28"},{"$f":"'Sledovanie úbytku hmotnosti'!C30","v":176.1},{"$nulls":4},{"$error":"#N/A"},{"$error":"#N/A"},{"$f":"IFERROR(AVERAGEIFS(TabuľkaHmotnosti[HMOTNOSŤ],TabuľkaHmotnosti[DÁTUM],\">=\"&H9,TabuľkaHmotnosti[DÁTUM],\"<=\"&I9),NA())","v":{"$error":"#N/A"}}]
[{"$f":"IF(('Sledovanie úbytku hmotnosti'!C31=0)*('Sledovanie úbytku hmotnosti'!C30=0),TRUE)","v":false},{"$f":"IF(A10,0,IF('Sledovanie úbytku hmotnosti'!B31=0,'Sledovanie úbytku hmotnosti'!B30+5,'Sledovanie úbytku hmotnosti'!B31))","v":"2013-01-04"},{"$f":"'Sledovanie úbytku hmotnosti'!C31","v":174},{"$nulls":4},{"$error":"#N/A"},{"$error":"#N/A"},{"$f":"IFERROR(AVERAGEIFS(TabuľkaHmotnosti[HMOTNOSŤ],TabuľkaHmotnosti[DÁTUM],\">=\"&H10,TabuľkaHmotnosti[DÁTUM],\"<=\"&I10),NA())","v":{"$error":"#N/A"}}]
[{"$f":"IF(('Sledovanie úbytku hmotnosti'!C32=0)*('Sledovanie úbytku hmotnosti'!C31=0),TRUE)","v":false},{"$f":"IF(A11,0,IF('Sledovanie úbytku hmotnosti'!B32=0,'Sledovanie úbytku hmotnosti'!B31+5,'Sledovanie úbytku hmotnosti'!B32))","v":"2013-01-11"},{"$f":"'Sledovanie úbytku hmotnosti'!C32","v":173},{"$nulls":4},{"$error":"#N/A"},{"$error":"#N/A"},{"$f":"IFERROR(AVERAGEIFS(TabuľkaHmotnosti[HMOTNOSŤ],TabuľkaHmotnosti[DÁTUM],\">=\"&H11,TabuľkaHmotnosti[DÁTUM],\"<=\"&I11),NA())","v":{"$error":"#N/A"}},{"$nulls":6},{"$f":"MAX($B:$B)","v":"2013-02-22"}]
[{"$f":"IF(('Sledovanie úbytku hmotnosti'!C33=0)*('Sledovanie úbytku hmotnosti'!C32=0),TRUE)","v":false},{"$f":"IF(A12,0,IF('Sledovanie úbytku hmotnosti'!B33=0,'Sledovanie úbytku hmotnosti'!B32+5,'Sledovanie úbytku hmotnosti'!B33))","v":"2013-01-18"},{"$f":"'Sledovanie úbytku hmotnosti'!C33","v":172},{"$nulls":4},{"$error":"#N/A"},{"$error":"#N/A"},{"$f":"IFERROR(AVERAGEIFS(TabuľkaHmotnosti[HMOTNOSŤ],TabuľkaHmotnosti[DÁTUM],\">=\"&H12,TabuľkaHmotnosti[DÁTUM],\"<=\"&I12),NA())","v":{"$error":"#N/A"}}]
[{"$f":"IF(('Sledovanie úbytku hmotnosti'!C34=0)*('Sledovanie úbytku hmotnosti'!C33=0),TRUE)","v":false},{"$f":"IF(A13,0,IF('Sledovanie úbytku hmotnosti'!B34=0,'Sledovanie úbytku hmotnosti'!B33+5,'Sledovanie úbytku hmotnosti'!B34))","v":"2013-01-25"},{"$f":"'Sledovanie úbytku hmotnosti'!C34","v":172},{"$nulls":4},{"$error":"#N/A"},{"$error":"#N/A"},{"$f":"IFERROR(AVERAGEIFS(TabuľkaHmotnosti[HMOTNOSŤ],TabuľkaHmotnosti[DÁTUM],\">=\"&H13,TabuľkaHmotnosti[DÁTUM],\"<=\"&I13),NA())","v":{"$error":"#N/A"}}]
[{"$f":"IF(('Sledovanie úbytku hmotnosti'!C35=0)*('Sledovanie úbytku hmotnosti'!C34=0),TRUE)","v":false},{"$f":"IF(A14,0,IF('Sledovanie úbytku hmotnosti'!B35=0,'Sledovanie úbytku hmotnosti'!B34+5,'Sledovanie úbytku hmotnosti'!B35))","v":"2013-02-01"},{"$f":"'Sledovanie úbytku hmotnosti'!C35","v":173},{"$nulls":4},{"$error":"#N/A"},{"$error":"#N/A"},{"$f":"IFERROR(AVERAGEIFS(TabuľkaHmotnosti[HMOTNOSŤ],TabuľkaHmotnosti[DÁTUM],\">=\"&H14,TabuľkaHmotnosti[DÁTUM],\"<=\"&I14),NA())","v":{"$error":"#N/A"}}]
[{"$f":"IF(('Sledovanie úbytku hmotnosti'!C36=0)*('Sledovanie úbytku hmotnosti'!C35=0),TRUE)","v":false},{"$f":"IF(A15,0,IF('Sledovanie úbytku hmotnosti'!B36=0,'Sledovanie úbytku hmotnosti'!B35+5,'Sledovanie úbytku hmotnosti'!B36))","v":"2013-02-08"},{"$f":"'Sledovanie úbytku hmotnosti'!C36","v":174},{"$nulls":4},{"$error":"#N/A"},{"$error":"#N/A"},{"$f":"IFERROR(AVERAGEIFS(TabuľkaHmotnosti[HMOTNOSŤ],TabuľkaHmotnosti[DÁTUM],\">=\"&H15,TabuľkaHmotnosti[DÁTUM],\"<=\"&I15),NA())","v":{"$error":"#N/A"}}]
[{"$f":"IF(('Sledovanie úbytku hmotnosti'!C37=0)*('Sledovanie úbytku hmotnosti'!C36=0),TRUE)","v":false},{"$f":"IF(A16,0,IF('Sledovanie úbytku hmotnosti'!B37=0,'Sledovanie úbytku hmotnosti'!B36+5,'Sledovanie úbytku hmotnosti'!B37))","v":"2013-02-15"},{"$f":"'Sledovanie úbytku hmotnosti'!C37","v":175},{"$nulls":4},{"$error":"#N/A"},{"$error":"#N/A"},{"$f":"IFERROR(AVERAGEIFS(TabuľkaHmotnosti[HMOTNOSŤ],TabuľkaHmotnosti[DÁTUM],\">=\"&H16,TabuľkaHmotnosti[DÁTUM],\"<=\"&I16),NA())","v":{"$error":"#N/A"}}]
[{"$f":"IF(('Sledovanie úbytku hmotnosti'!C38=0)*('Sledovanie úbytku hmotnosti'!C37=0),TRUE)","v":false},{"$f":"IF(A17,0,IF('Sledovanie úbytku hmotnosti'!B38=0,'Sledovanie úbytku hmotnosti'!B37+5,'Sledovanie úbytku hmotnosti'!B38))","v":"2013-02-22"},{"$f":"'Sledovanie úbytku hmotnosti'!C38","v":0},{"$nulls":4},{"$error":"#N/A"},{"$error":"#N/A"},{"$f":"IFERROR(AVERAGEIFS(TabuľkaHmotnosti[HMOTNOSŤ],TabuľkaHmotnosti[DÁTUM],\">=\"&H17,TabuľkaHmotnosti[DÁTUM],\"<=\"&I17),NA())","v":{"$error":"#N/A"}}]
[{"$f":"IF(('Sledovanie úbytku hmotnosti'!C39=0)*('Sledovanie úbytku hmotnosti'!C38=0),TRUE)","v":true},{"$f":"IF(A18,0,IF('Sledovanie úbytku hmotnosti'!B39=0,'Sledovanie úbytku hmotnosti'!B38+5,'Sledovanie úbytku hmotnosti'!B39))","v":"00:00:00"},{"$f":"'Sledovanie úbytku hmotnosti'!C39","v":0},{"$nulls":4},{"$error":"#N/A"},{"$error":"#N/A"},{"$f":"IFERROR(AVERAGEIFS(TabuľkaHmotnosti[HMOTNOSŤ],TabuľkaHmotnosti[DÁTUM],\">=\"&H18,TabuľkaHmotnosti[DÁTUM],\"<=\"&I18),NA())","v":{"$error":"#N/A"}}]
[{"$f":"IF(('Sledovanie úbytku hmotnosti'!C40=0)*('Sledovanie úbytku hmotnosti'!C39=0),TRUE)","v":true},{"$f":"IF(A19,0,IF('Sledovanie úbytku hmotnosti'!B40=0,'Sledovanie úbytku hmotnosti'!B39+5,'Sledovanie úbytku hmotnosti'!B40))","v":"00:00:00"},{"$f":"'Sledovanie úbytku hmotnosti'!C40","v":0},{"$nulls":4},{"$error":"#N/A"},{"$error":"#N/A"},{"$f":"IFERROR(AVERAGEIFS(TabuľkaHmotnosti[HMOTNOSŤ],TabuľkaHmotnosti[DÁTUM],\">=\"&H19,TabuľkaHmotnosti[DÁTUM],\"<=\"&I19),NA())","v":{"$error":"#N/A"}}]
[{"$f":"IF(('Sledovanie úbytku hmotnosti'!C41=0)*('Sledovanie úbytku hmotnosti'!C40=0),TRUE)","v":true},{"$f":"IF(A20,0,IF('Sledovanie úbytku hmotnosti'!B41=0,'Sledovanie úbytku hmotnosti'!B40+5,'Sledovanie úbytku hmotnosti'!B41))","v":"00:00:00"},{"$f":"'Sledovanie úbytku hmotnosti'!C41","v":0},{"$nulls":4},{"$error":"#N/A"},{"$error":"#N/A"},{"$f":"IFERROR(AVERAGEIFS(TabuľkaHmotnosti[HMOTNOSŤ],TabuľkaHmotnosti[DÁTUM],\">=\"&H20,TabuľkaHmotnosti[DÁTUM],\"<=\"&I20),NA())","v":{"$error":"#N/A"}}]
[{"$f":"IF(('Sledovanie úbytku hmotnosti'!C42=0)*('Sledovanie úbytku hmotnosti'!C41=0),TRUE)","v":true},{"$f":"IF(A21,0,IF('Sledovanie úbytku hmotnosti'!B42=0,'Sledovanie úbytku hmotnosti'!B41+5,'Sledovanie úbytku hmotnosti'!B42))","v":"00:00:00"},{"$f":"'Sledovanie úbytku hmotnosti'!C42","v":0},{"$nulls":4},{"$error":"#N/A"},{"$error":"#N/A"},{"$f":"IFERROR(AVERAGEIFS(TabuľkaHmotnosti[HMOTNOSŤ],TabuľkaHmotnosti[DÁTUM],\">=\"&H21,TabuľkaHmotnosti[DÁTUM],\"<=\"&I21),NA())","v":{"$error":"#N/A"}}]
[{"$f":"IF(('Sledovanie úbytku hmotnosti'!C43=0)*('Sledovanie úbytku hmotnosti'!C42=0),TRUE)","v":true},{"$f":"IF(A22,0,IF('Sledovanie úbytku hmotnosti'!B43=0,'Sledovanie úbytku hmotnosti'!B42+5,'Sledovanie úbytku hmotnosti'!B43))","v":"00:00:00"},{"$f":"'Sledovanie úbytku hmotnosti'!C43","v":0},{"$nulls":4},{"$error":"#N/A"},{"$error":"#N/A"},{"$f":"IFERROR(AVERAGEIFS(TabuľkaHmotnosti[HMOTNOSŤ],TabuľkaHmotnosti[DÁTUM],\">=\"&H22,TabuľkaHmotnosti[DÁTUM],\"<=\"&I22),NA())","v":{"$error":"#N/A"}}]
[{"$f":"IF(('Sledovanie úbytku hmotnosti'!C44=0)*('Sledovanie úbytku hmotnosti'!C43=0),TRUE)","v":true},{"$f":"IF(A23,0,IF('Sledovanie úbytku hmotnosti'!B44=0,'Sledovanie úbytku hmotnosti'!B43+5,'Sledovanie úbytku hmotnosti'!B44))","v":"00:00:00"},{"$f":"'Sledovanie úbytku hmotnosti'!C44","v":0},{"$nulls":4},{"$error":"#N/A"},{"$error":"#N/A"},{"$f":"IFERROR(AVERAGEIFS(TabuľkaHmotnosti[HMOTNOSŤ],TabuľkaHmotnosti[DÁTUM],\">=\"&H23,TabuľkaHmotnosti[DÁTUM],\"<=\"&I23),NA())","v":{"$error":"#N/A"}}]
[{"$f":"IF(('Sledovanie úbytku hmotnosti'!C45=0)*('Sledovanie úbytku hmotnosti'!C44=0),TRUE)","v":true},{"$f":"IF(A24,0,IF('Sledovanie úbytku hmotnosti'!B45=0,'Sledovanie úbytku hmotnosti'!B44+5,'Sledovanie úbytku hmotnosti'!B45))","v":"00:00:00"},{"$f":"'Sledovanie úbytku hmotnosti'!C45","v":0},{"$nulls":4},{"$error":"#N/A"},{"$error":"#N/A"},{"$f":"IFERROR(AVERAGEIFS(TabuľkaHmotnosti[HMOTNOSŤ],TabuľkaHmotnosti[DÁTUM],\">=\"&H24,TabuľkaHmotnosti[DÁTUM],\"<=\"&I24),NA())","v":{"$error":"#N/A"}}]
[{"$f":"IF(('Sledovanie úbytku hmotnosti'!C46=0)*('Sledovanie úbytku hmotnosti'!C45=0),TRUE)","v":true},{"$f":"IF(A25,0,IF('Sledovanie úbytku hmotnosti'!B46=0,'Sledovanie úbytku hmotnosti'!B45+5,'Sledovanie úbytku hmotnosti'!B46))","v":"00:00:00"},{"$f":"'Sledovanie úbytku hmotnosti'!C46","v":0},{"$nulls":4},{"$error":"#N/A"},{"$error":"#N/A"},{"$f":"IFERROR(AVERAGEIFS(TabuľkaHmotnosti[HMOTNOSŤ],TabuľkaHmotnosti[DÁTUM],\">=\"&H25,TabuľkaHmotnosti[DÁTUM],\"<=\"&I25),NA())","v":{"$error":"#N/A"}}]
[{"$f":"IF(('Sledovanie úbytku hmotnosti'!C47=0)*('Sledovanie úbytku hmotnosti'!C46=0),TRUE)","v":true},{"$f":"IF(A26,0,IF('Sledovanie úbytku hmotnosti'!B47=0,'Sledovanie úbytku hmotnosti'!B46+5,'Sledovanie úbytku hmotnosti'!B47))","v":"00:00:00"},{"$f":"'Sledovanie úbytku hmotnosti'!C47","v":0},{"$nulls":4},{"$error":"#N/A"},{"$error":"#N/A"},{"$f":"IFERROR(AVERAGEIFS(TabuľkaHmotnosti[HMOTNOSŤ],TabuľkaHmotnosti[DÁTUM],\">=\"&H26,TabuľkaHmotnosti[DÁTUM],\"<=\"&I26),NA())","v":{"$error":"#N/A"}}]
[{"$f":"IF(('Sledovanie úbytku hmotnosti'!C48=0)*('Sledovanie úbytku hmotnosti'!C47=0),TRUE)","v":true},{"$f":"IF(A27,0,IF('Sledovanie úbytku hmotnosti'!B48=0,'Sledovanie úbytku hmotnosti'!B47+5,'Sledovanie úbytku hmotnosti'!B48))","v":"00:00:00"},{"$f":"'Sledovanie úbytku hmotnosti'!C48","v":0},{"$nulls":4},{"$error":"#N/A"},{"$error":"#N/A"},{"$f":"IFERROR(AVERAGEIFS(TabuľkaHmotnosti[HMOTNOSŤ],TabuľkaHmotnosti[DÁTUM],\">=\"&H27,TabuľkaHmotnosti[DÁTUM],\"<=\"&I27),NA())","v":{"$error":"#N/A"}}]
[{"$f":"IF(('Sledovanie úbytku hmotnosti'!C49=0)*('Sledovanie úbytku hmotnosti'!C48=0),TRUE)","v":true},{"$f":"IF(A28,0,IF('Sledovanie úbytku hmotnosti'!B49=0,'Sledovanie úbytku hmotnosti'!B48+5,'Sledovanie úbytku hmotnosti'!B49))","v":"00:00:00"},{"$f":"'Sledovanie úbytku hmotnosti'!C49","v":0},{"$nulls":4},{"$error":"#N/A"},{"$error":"#N/A"},{"$f":"IFERROR(AVERAGEIFS(TabuľkaHmotnosti[HMOTNOSŤ],TabuľkaHmotnosti[DÁTUM],\">=\"&H28,TabuľkaHmotnosti[DÁTUM],\"<=\"&I28),NA())","v":{"$error":"#N/A"}}]
[{"$f":"IF(('Sledovanie úbytku hmotnosti'!C50=0)*('Sledovanie úbytku hmotnosti'!C49=0),TRUE)","v":true},{"$f":"IF(A29,0,IF('Sledovanie úbytku hmotnosti'!B50=0,'Sledovanie úbytku hmotnosti'!B49+5,'Sledovanie úbytku hmotnosti'!B50))","v":"00:00:00"},{"$f":"'Sledovanie úbytku hmotnosti'!C50","v":0}]
[{"$f":"IF(('Sledovanie úbytku hmotnosti'!C51=0)*('Sledovanie úbytku hmotnosti'!C50=0),TRUE)","v":true},{"$f":"IF(A30,0,IF('Sledovanie úbytku hmotnosti'!B51=0,'Sledovanie úbytku hmotnosti'!B50+5,'Sledovanie úbytku hmotnosti'!B51))","v":"00:00:00"},{"$f":"'Sledovanie úbytku hmotnosti'!C51","v":0}]
[{"$f":"IF(('Sledovanie úbytku hmotnosti'!C52=0)*('Sledovanie úbytku hmotnosti'!C51=0),TRUE)","v":true},{"$f":"IF(A31,0,IF('Sledovanie úbytku hmotnosti'!B52=0,'Sledovanie úbytku hmotnosti'!B51+5,'Sledovanie úbytku hmotnosti'!B52))","v":"00:00:00"},{"$f":"'Sledovanie úbytku hmotnosti'!C52","v":0}]
[{"$f":"IF(('Sledovanie úbytku hmotnosti'!C53=0)*('Sledovanie úbytku hmotnosti'!C52=0),TRUE)","v":true},{"$f":"IF(A32,0,IF('Sledovanie úbytku hmotnosti'!B53=0,'Sledovanie úbytku hmotnosti'!B52+5,'Sledovanie úbytku hmotnosti'!B53))","v":"00:00:00"},{"$f":"'Sledovanie úbytku hmotnosti'!C53","v":0}]
[{"$f":"IF(('Sledovanie úbytku hmotnosti'!C54=0)*('Sledovanie úbytku hmotnosti'!C53=0),TRUE)","v":true},{"$f":"IF(A33,0,IF('Sledovanie úbytku hmotnosti'!B54=0,'Sledovanie úbytku hmotnosti'!B53+5,'Sledovanie úbytku hmotnosti'!B54))","v":"00:00:00"},{"$f":"'Sledovanie úbytku hmotnosti'!C54","v":0}]
[{"$f":"IF(('Sledovanie úbytku hmotnosti'!C55=0)*('Sledovanie úbytku hmotnosti'!C54=0),TRUE)","v":true},{"$f":"IF(A34,0,IF('Sledovanie úbytku hmotnosti'!B55=0,'Sledovanie úbytku hmotnosti'!B54+5,'Sledovanie úbytku hmotnosti'!B55))","v":"00:00:00"},{"$f":"'Sledovanie úbytku hmotnosti'!C55","v":0}]
[{"$f":"IF(('Sledovanie úbytku hmotnosti'!C56=0)*('Sledovanie úbytku hmotnosti'!C55=0),TRUE)","v":true},{"$f":"IF(A35,0,IF('Sledovanie úbytku hmotnosti'!B56=0,'Sledovanie úbytku hmotnosti'!B55+5,'Sledovanie úbytku hmotnosti'!B56))","v":"00:00:00"},{"$f":"'Sledovanie úbytku hmotnosti'!C56","v":0}]
[{"$f":"IF(('Sledovanie úbytku hmotnosti'!C57=0)*('Sledovanie úbytku hmotnosti'!C56=0),TRUE)","v":true},{"$f":"IF(A36,0,IF('Sledovanie úbytku hmotnosti'!B57=0,'Sledovanie úbytku hmotnosti'!B56+5,'Sledovanie úbytku hmotnosti'!B57))","v":"00:00:00"},{"$f":"'Sledovanie úbytku hmotnosti'!C57","v":0}]
[{"$f":"IF(('Sledovanie úbytku hmotnosti'!C58=0)*('Sledovanie úbytku hmotnosti'!C57=0),TRUE)","v":true},{"$f":"IF(A37,0,IF('Sledovanie úbytku hmotnosti'!B58=0,'Sledovanie úbytku hmotnosti'!B57+5,'Sledovanie úbytku hmotnosti'!B58))","v":"00:00:00"},{"$f":"'Sledovanie úbytku hmotnosti'!C58","v":0}]
[{"$f":"IF(('Sledovanie úbytku hmotnosti'!C59=0)*('Sledovanie úbytku hmotnosti'!C58=0),TRUE)","v":true},{"$f":"IF(A38,0,IF('Sledovanie úbytku hmotnosti'!B59=0,'Sledovanie úbytku hmotnosti'!B58+5,'Sledovanie úbytku hmotnosti'!B59))","v":"00:00:00"},{"$f":"'Sledovanie úbytku hmotnosti'!C59","v":0}]
[{"$f":"IF(('Sledovanie úbytku hmotnosti'!C60=0)*('Sledovanie úbytku hmotnosti'!C59=0),TRUE)","v":true},{"$f":"IF(A39,0,IF('Sledovanie úbytku hmotnosti'!B60=0,'Sledovanie úbytku hmotnosti'!B59+5,'Sledovanie úbytku hmotnosti'!B60))","v":"00:00:00"},{"$f":"'Sledovanie úbytku hmotnosti'!C60","v":0}]
[{"$f":"IF(('Sledovanie úbytku hmotnosti'!C61=0)*('Sledovanie úbytku hmotnosti'!C60=0),TRUE)","v":true},{"$f":"IF(A40,0,IF('Sledovanie úbytku hmotnosti'!B61=0,'Sledovanie úbytku hmotnosti'!B60+5,'Sledovanie úbytku hmotnosti'!B61))","v":"00:00:00"},{"$f":"'Sledovanie úbytku hmotnosti'!C61","v":0}]
[{"$f":"IF(('Sledovanie úbytku hmotnosti'!C62=0)*('Sledovanie úbytku hmotnosti'!C61=0),TRUE)","v":true},{"$f":"IF(A41,0,IF('Sledovanie úbytku hmotnosti'!B62=0,'Sledovanie úbytku hmotnosti'!B61+5,'Sledovanie úbytku hmotnosti'!B62))","v":"00:00:00"},{"$f":"'Sledovanie úbytku hmotnosti'!C62","v":0}]
[{"$f":"IF(('Sledovanie úbytku hmotnosti'!C63=0)*('Sledovanie úbytku hmotnosti'!C62=0),TRUE)","v":true},{"$f":"IF(A42,0,IF('Sledovanie úbytku hmotnosti'!B63=0,'Sledovanie úbytku hmotnosti'!B62+5,'Sledovanie úbytku hmotnosti'!B63))","v":"00:00:00"},{"$f":"'Sledovanie úbytku hmotnosti'!C63","v":0}]
[{"$f":"IF(('Sledovanie úbytku hmotnosti'!C64=0)*('Sledovanie úbytku hmotnosti'!C63=0),TRUE)","v":true},{"$f":"IF(A43,0,IF('Sledovanie úbytku hmotnosti'!B64=0,'Sledovanie úbytku hmotnosti'!B63+5,'Sledovanie úbytku hmotnosti'!B64))","v":"00:00:00"},{"$f":"'Sledovanie úbytku hmotnosti'!C64","v":0}]
[{"$f":"IF(('Sledovanie úbytku hmotnosti'!C65=0)*('Sledovanie úbytku hmotnosti'!C64=0),TRUE)","v":true},{"$f":"IF(A44,0,IF('Sledovanie úbytku hmotnosti'!B65=0,'Sledovanie úbytku hmotnosti'!B64+5,'Sledovanie úbytku hmotnosti'!B65))","v":"00:00:00"},{"$f":"'Sledovanie úbytku hmotnosti'!C65","v":0}]
[{"$f":"IF(('Sledovanie úbytku hmotnosti'!C66=0)*('Sledovanie úbytku hmotnosti'!C65=0),TRUE)","v":true},{"$f":"IF(A45,0,IF('Sledovanie úbytku hmotnosti'!B66=0,'Sledovanie úbytku hmotnosti'!B65+5,'Sledovanie úbytku hmotnosti'!B66))","v":"00:00:00"},{"$f":"'Sledovanie úbytku hmotnosti'!C66","v":0}]
[{"$f":"IF(('Sledovanie úbytku hmotnosti'!C67=0)*('Sledovanie úbytku hmotnosti'!C66=0),TRUE)","v":true},{"$f":"IF(A46,0,IF('Sledovanie úbytku hmotnosti'!B67=0,'Sledovanie úbytku hmotnosti'!B66+5,'Sledovanie úbytku hmotnosti'!B67))","v":"00:00:00"},{"$f":"'Sledovanie úbytku hmotnosti'!C67","v":0}]
[{"$f":"IF(('Sledovanie úbytku hmotnosti'!C68=0)*('Sledovanie úbytku hmotnosti'!C67=0),TRUE)","v":true},{"$f":"IF(A47,0,IF('Sledovanie úbytku hmotnosti'!B68=0,'Sledovanie úbytku hmotnosti'!B67+5,'Sledovanie úbytku hmotnosti'!B68))","v":"00:00:00"},{"$f":"'Sledovanie úbytku hmotnosti'!C68","v":0}]
[{"$f":"IF(('Sledovanie úbytku hmotnosti'!C69=0)*('Sledovanie úbytku hmotnosti'!C68=0),TRUE)","v":true},{"$f":"IF(A48,0,IF('Sledovanie úbytku hmotnosti'!B69=0,'Sledovanie úbytku hmotnosti'!B68+5,'Sledovanie úbytku hmotnosti'!B69))","v":"00:00:00"},{"$f":"'Sledovanie úbytku hmotnosti'!C69","v":0}]
[{"$f":"IF(('Sledovanie úbytku hmotnosti'!C70=0)*('Sledovanie úbytku hmotnosti'!C69=0),TRUE)","v":true},{"$f":"IF(A49,0,IF('Sledovanie úbytku hmotnosti'!B70=0,'Sledovanie úbytku hmotnosti'!B69+5,'Sledovanie úbytku hmotnosti'!B70))","v":"00:00:00"},{"$f":"'Sledovanie úbytku hmotnosti'!C70","v":0}]
[{"$f":"IF(('Sledovanie úbytku hmotnosti'!C71=0)*('Sledovanie úbytku hmotnosti'!C70=0),TRUE)","v":true},{"$f":"IF(A50,0,IF('Sledovanie úbytku hmotnosti'!B71=0,'Sledovanie úbytku hmotnosti'!B70+5,'Sledovanie úbytku hmotnosti'!B71))","v":"00:00:00"},{"$f":"'Sledovanie úbytku hmotnosti'!C71","v":0}]
[{"$f":"IF(('Sledovanie úbytku hmotnosti'!C72=0)*('Sledovanie úbytku hmotnosti'!C71=0),TRUE)","v":true},{"$f":"IF(A51,0,IF('Sledovanie úbytku hmotnosti'!B72=0,'Sledovanie úbytku hmotnosti'!B71+5,'Sledovanie úbytku hmotnosti'!B72))","v":"00:00:00"},{"$f":"'Sledovanie úbytku hmotnosti'!C72","v":0}]
[{"$f":"IF(('Sledovanie úbytku hmotnosti'!C73=0)*('Sledovanie úbytku hmotnosti'!C72=0),TRUE)","v":true},{"$f":"IF(A52,0,IF('Sledovanie úbytku hmotnosti'!B73=0,'Sledovanie úbytku hmotnosti'!B72+5,'Sledovanie úbytku hmotnosti'!B73))","v":"00:00:00"},{"$f":"'Sledovanie úbytku hmotnosti'!C73","v":0}]
[{"$f":"IF(('Sledovanie úbytku hmotnosti'!C74=0)*('Sledovanie úbytku hmotnosti'!C73=0),TRUE)","v":true},{"$f":"IF(A53,0,IF('Sledovanie úbytku hmotnosti'!B74=0,'Sledovanie úbytku hmotnosti'!B73+5,'Sledovanie úbytku hmotnosti'!B74))","v":"00:00:00"},{"$f":"'Sledovanie úbytku hmotnosti'!C74","v":0}]
[{"$f":"IF(('Sledovanie úbytku hmotnosti'!C75=0)*('Sledovanie úbytku hmotnosti'!C74=0),TRUE)","v":true},{"$f":"IF(A54,0,IF('Sledovanie úbytku hmotnosti'!B75=0,'Sledovanie úbytku hmotnosti'!B74+5,'Sledovanie úbytku hmotnosti'!B75))","v":"00:00:00"},{"$f":"'Sledovanie úbytku hmotnosti'!C75","v":0}]
[{"$f":"IF(('Sledovanie úbytku hmotnosti'!C76=0)*('Sledovanie úbytku hmotnosti'!C75=0),TRUE)","v":true},{"$f":"IF(A55,0,IF('Sledovanie úbytku hmotnosti'!B76=0,'Sledovanie úbytku hmotnosti'!B75+5,'Sledovanie úbytku hmotnosti'!B76))","v":"00:00:00"},{"$f":"'Sledovanie úbytku hmotnosti'!C76","v":0}]
[{"$f":"IF(('Sledovanie úbytku hmotnosti'!C77=0)*('Sledovanie úbytku hmotnosti'!C76=0),TRUE)","v":true},{"$f":"IF(A56,0,IF('Sledovanie úbytku hmotnosti'!B77=0,'Sledovanie úbytku hmotnosti'!B76+5,'Sledovanie úbytku hmotnosti'!B77))","v":"00:00:00"},{"$f":"'Sledovanie úbytku hmotnosti'!C77","v":0}]
[{"$f":"IF(('Sledovanie úbytku hmotnosti'!C78=0)*('Sledovanie úbytku hmotnosti'!C77=0),TRUE)","v":true},{"$f":"IF(A57,0,IF('Sledovanie úbytku hmotnosti'!B78=0,'Sledovanie úbytku hmotnosti'!B77+5,'Sledovanie úbytku hmotnosti'!B78))","v":"00:00:00"},{"$f":"'Sledovanie úbytku hmotnosti'!C78","v":0}]
[{"$f":"IF(('Sledovanie úbytku hmotnosti'!C79=0)*('Sledovanie úbytku hmotnosti'!C78=0),TRUE)","v":true},{"$f":"IF(A58,0,IF('Sledovanie úbytku hmotnosti'!B79=0,'Sledovanie úbytku hmotnosti'!B78+5,'Sledovanie úbytku hmotnosti'!B79))","v":"00:00:00"},{"$f":"'Sledovanie úbytku hmotnosti'!C79","v":0}]
[{"$f":"IF(('Sledovanie úbytku hmotnosti'!C80=0)*('Sledovanie úbytku hmotnosti'!C79=0),TRUE)","v":true},{"$f":"IF(A59,0,IF('Sledovanie úbytku hmotnosti'!B80=0,'Sledovanie úbytku hmotnosti'!B79+5,'Sledovanie úbytku hmotnosti'!B80))","v":"00:00:00"},{"$f":"'Sledovanie úbytku hmotnosti'!C80","v":0}]
[{"$f":"IF(('Sledovanie úbytku hmotnosti'!C81=0)*('Sledovanie úbytku hmotnosti'!C80=0),TRUE)","v":true},{"$f":"IF(A60,0,IF('Sledovanie úbytku hmotnosti'!B81=0,'Sledovanie úbytku hmotnosti'!B80+5,'Sledovanie úbytku hmotnosti'!B81))","v":"00:00:00"},{"$f":"'Sledovanie úbytku hmotnosti'!C81","v":0}]
[{"$f":"IF(('Sledovanie úbytku hmotnosti'!C82=0)*('Sledovanie úbytku hmotnosti'!C81=0),TRUE)","v":true},{"$f":"IF(A61,0,IF('Sledovanie úbytku hmotnosti'!B82=0,'Sledovanie úbytku hmotnosti'!B81+5,'Sledovanie úbytku hmotnosti'!B82))","v":"00:00:00"},{"$f":"'Sledovanie úbytku hmotnosti'!C82","v":0}]
[{"$f":"IF(('Sledovanie úbytku hmotnosti'!C83=0)*('Sledovanie úbytku hmotnosti'!C82=0),TRUE)","v":true},{"$f":"IF(A62,0,IF('Sledovanie úbytku hmotnosti'!B83=0,'Sledovanie úbytku hmotnosti'!B82+5,'Sledovanie úbytku hmotnosti'!B83))","v":"00:00:00"},{"$f":"'Sledovanie úbytku hmotnosti'!C83","v":0}]
[{"$f":"IF(('Sledovanie úbytku hmotnosti'!C84=0)*('Sledovanie úbytku hmotnosti'!C83=0),TRUE)","v":true},{"$f":"IF(A63,0,IF('Sledovanie úbytku hmotnosti'!B84=0,'Sledovanie úbytku hmotnosti'!B83+5,'Sledovanie úbytku hmotnosti'!B84))","v":"00:00:00"},{"$f":"'Sledovanie úbytku hmotnosti'!C84","v":0}]
[{"$f":"IF(('Sledovanie úbytku hmotnosti'!C85=0)*('Sledovanie úbytku hmotnosti'!C84=0),TRUE)","v":true},{"$f":"IF(A64,0,IF('Sledovanie úbytku hmotnosti'!B85=0,'Sledovanie úbytku hmotnosti'!B84+5,'Sledovanie úbytku hmotnosti'!B85))","v":"00:00:00"},{"$f":"'Sledovanie úbytku hmotnosti'!C85","v":0}]
[{"$f":"IF(('Sledovanie úbytku hmotnosti'!C86=0)*('Sledovanie úbytku hmotnosti'!C85=0),TRUE)","v":true},{"$f":"IF(A65,0,IF('Sledovanie úbytku hmotnosti'!B86=0,'Sledovanie úbytku hmotnosti'!B85+5,'Sledovanie úbytku hmotnosti'!B86))","v":"00:00:00"},{"$f":"'Sledovanie úbytku hmotnosti'!C86","v":0}]
[{"$f":"IF(('Sledovanie úbytku hmotnosti'!C87=0)*('Sledovanie úbytku hmotnosti'!C86=0),TRUE)","v":true},{"$f":"IF(A66,0,IF('Sledovanie úbytku hmotnosti'!B87=0,'Sledovanie úbytku hmotnosti'!B86+5,'Sledovanie úbytku hmotnosti'!B87))","v":"00:00:00"},{"$f":"'Sledovanie úbytku hmotnosti'!C87","v":0}]
[{"$f":"IF(('Sledovanie úbytku hmotnosti'!C88=0)*('Sledovanie úbytku hmotnosti'!C87=0),TRUE)","v":true},{"$f":"IF(A67,0,IF('Sledovanie úbytku hmotnosti'!B88=0,'Sledovanie úbytku hmotnosti'!B87+5,'Sledovanie úbytku hmotnosti'!B88))","v":"00:00:00"},{"$f":"'Sledovanie úbytku hmotnosti'!C88","v":0}]
[{"$f":"IF(('Sledovanie úbytku hmotnosti'!C89=0)*('Sledovanie úbytku hmotnosti'!C88=0),TRUE)","v":true},{"$f":"IF(A68,0,IF('Sledovanie úbytku hmotnosti'!B89=0,'Sledovanie úbytku hmotnosti'!B88+5,'Sledovanie úbytku hmotnosti'!B89))","v":"00:00:00"},{"$f":"'Sledovanie úbytku hmotnosti'!C89","v":0}]
[{"$f":"IF(('Sledovanie úbytku hmotnosti'!C90=0)*('Sledovanie úbytku hmotnosti'!C89=0),TRUE)","v":true},{"$f":"IF(A69,0,IF('Sledovanie úbytku hmotnosti'!B90=0,'Sledovanie úbytku hmotnosti'!B89+5,'Sledovanie úbytku hmotnosti'!B90))","v":"00:00:00"},{"$f":"'Sledovanie úbytku hmotnosti'!C90","v":0}]
[{"$f":"IF(('Sledovanie úbytku hmotnosti'!C91=0)*('Sledovanie úbytku hmotnosti'!C90=0),TRUE)","v":true},{"$f":"IF(A70,0,IF('Sledovanie úbytku hmotnosti'!B91=0,'Sledovanie úbytku hmotnosti'!B90+5,'Sledovanie úbytku hmotnosti'!B91))","v":"00:00:00"},{"$f":"'Sledovanie úbytku hmotnosti'!C91","v":0}]
[{"$f":"IF(('Sledovanie úbytku hmotnosti'!C92=0)*('Sledovanie úbytku hmotnosti'!C91=0),TRUE)","v":true},{"$f":"IF(A71,0,IF('Sledovanie úbytku hmotnosti'!B92=0,'Sledovanie úbytku hmotnosti'!B91+5,'Sledovanie úbytku hmotnosti'!B92))","v":"00:00:00"},{"$f":"'Sledovanie úbytku hmotnosti'!C92","v":0}]
[{"$f":"IF(('Sledovanie úbytku hmotnosti'!C93=0)*('Sledovanie úbytku hmotnosti'!C92=0),TRUE)","v":true},{"$f":"IF(A72,0,IF('Sledovanie úbytku hmotnosti'!B93=0,'Sledovanie úbytku hmotnosti'!B92+5,'Sledovanie úbytku hmotnosti'!B93))","v":"00:00:00"},{"$f":"'Sledovanie úbytku hmotnosti'!C93","v":0}]
[{"$f":"IF(('Sledovanie úbytku hmotnosti'!C94=0)*('Sledovanie úbytku hmotnosti'!C93=0),TRUE)","v":true},{"$f":"IF(A73,0,IF('Sledovanie úbytku hmotnosti'!B94=0,'Sledovanie úbytku hmotnosti'!B93+5,'Sledovanie úbytku hmotnosti'!B94))","v":"00:00:00"},{"$f":"'Sledovanie úbytku hmotnosti'!C94","v":0}]
[{"$f":"IF(('Sledovanie úbytku hmotnosti'!C95=0)*('Sledovanie úbytku hmotnosti'!C94=0),TRUE)","v":true},{"$f":"IF(A74,0,IF('Sledovanie úbytku hmotnosti'!B95=0,'Sledovanie úbytku hmotnosti'!B94+5,'Sledovanie úbytku hmotnosti'!B95))","v":"00:00:00"},{"$f":"'Sledovanie úbytku hmotnosti'!C95","v":0}]
[{"$f":"IF(('Sledovanie úbytku hmotnosti'!C96=0)*('Sledovanie úbytku hmotnosti'!C95=0),TRUE)","v":true},{"$f":"IF(A75,0,IF('Sledovanie úbytku hmotnosti'!B96=0,'Sledovanie úbytku hmotnosti'!B95+5,'Sledovanie úbytku hmotnosti'!B96))","v":"00:00:00"},{"$f":"'Sledovanie úbytku hmotnosti'!C96","v":0}]
[{"$f":"IF(('Sledovanie úbytku hmotnosti'!C97=0)*('Sledovanie úbytku hmotnosti'!C96=0),TRUE)","v":true},{"$f":"IF(A76,0,IF('Sledovanie úbytku hmotnosti'!B97=0,'Sledovanie úbytku hmotnosti'!B96+5,'Sledovanie úbytku hmotnosti'!B97))","v":"00:00:00"},{"$f":"'Sledovanie úbytku hmotnosti'!C97","v":0}]
[{"$f":"IF(('Sledovanie úbytku hmotnosti'!C98=0)*('Sledovanie úbytku hmotnosti'!C97=0),TRUE)","v":true},{"$f":"IF(A77,0,IF('Sledovanie úbytku hmotnosti'!B98=0,'Sledovanie úbytku hmotnosti'!B97+5,'Sledovanie úbytku hmotnosti'!B98))","v":"00:00:00"},{"$f":"'Sledovanie úbytku hmotnosti'!C98","v":0}]
[{"$f":"IF(('Sledovanie úbytku hmotnosti'!C99=0)*('Sledovanie úbytku hmotnosti'!C98=0),TRUE)","v":true},{"$f":"IF(A78,0,IF('Sledovanie úbytku hmotnosti'!B99=0,'Sledovanie úbytku hmotnosti'!B98+5,'Sledovanie úbytku hmotnosti'!B99))","v":"00:00:00"},{"$f":"'Sledovanie úbytku hmotnosti'!C99","v":0}]
[{"$f":"IF(('Sledovanie úbytku hmotnosti'!C100=0)*('Sledovanie úbytku hmotnosti'!C99=0),TRUE)","v":true},{"$f":"IF(A79,0,IF('Sledovanie úbytku hmotnosti'!B100=0,'Sledovanie úbytku hmotnosti'!B99+5,'Sledovanie úbytku hmotnosti'!B100))","v":"00:00:00"},{"$f":"'Sledovanie úbytku hmotnosti'!C100","v":0}]
[{"$f":"IF(('Sledovanie úbytku hmotnosti'!C101=0)*('Sledovanie úbytku hmotnosti'!C100=0),TRUE)","v":true},{"$f":"IF(A80,0,IF('Sledovanie úbytku hmotnosti'!B101=0,'Sledovanie úbytku hmotnosti'!B100+5,'Sledovanie úbytku hmotnosti'!B101))","v":"00:00:00"},{"$f":"'Sledovanie úbytku hmotnosti'!C101","v":0}]
[{"$f":"IF(('Sledovanie úbytku hmotnosti'!C102=0)*('Sledovanie úbytku hmotnosti'!C101=0),TRUE)","v":true},{"$f":"IF(A81,0,IF('Sledovanie úbytku hmotnosti'!B102=0,'Sledovanie úbytku hmotnosti'!B101+5,'Sledovanie úbytku hmotnosti'!B102))","v":"00:00:00"},{"$f":"'Sledovanie úbytku hmotnosti'!C102","v":0}]
[{"$f":"IF(('Sledovanie úbytku hmotnosti'!C103=0)*('Sledovanie úbytku hmotnosti'!C102=0),TRUE)","v":true},{"$f":"IF(A82,0,IF('Sledovanie úbytku hmotnosti'!B103=0,'Sledovanie úbytku hmotnosti'!B102+5,'Sledovanie úbytku hmotnosti'!B103))","v":"00:00:00"},{"$f":"'Sledovanie úbytku hmotnosti'!C103","v":0}]
[{"$f":"IF(('Sledovanie úbytku hmotnosti'!C104=0)*('Sledovanie úbytku hmotnosti'!C103=0),TRUE)","v":true},{"$f":"IF(A83,0,IF('Sledovanie úbytku hmotnosti'!B104=0,'Sledovanie úbytku hmotnosti'!B103+5,'Sledovanie úbytku hmotnosti'!B104))","v":"00:00:00"},{"$f":"'Sledovanie úbytku hmotnosti'!C104","v":0}]
[{"$f":"IF(('Sledovanie úbytku hmotnosti'!C105=0)*('Sledovanie úbytku hmotnosti'!C104=0),TRUE)","v":true},{"$f":"IF(A84,0,IF('Sledovanie úbytku hmotnosti'!B105=0,'Sledovanie úbytku hmotnosti'!B104+5,'Sledovanie úbytku hmotnosti'!B105))","v":"00:00:00"},{"$f":"'Sledovanie úbytku hmotnosti'!C105","v":0}]
[{"$f":"IF(('Sledovanie úbytku hmotnosti'!C106=0)*('Sledovanie úbytku hmotnosti'!C105=0),TRUE)","v":true},{"$f":"IF(A85,0,IF('Sledovanie úbytku hmotnosti'!B106=0,'Sledovanie úbytku hmotnosti'!B105+5,'Sledovanie úbytku hmotnosti'!B106))","v":"00:00:00"},{"$f":"'Sledovanie úbytku hmotnosti'!C106","v":0}]
[{"$f":"IF(('Sledovanie úbytku hmotnosti'!C107=0)*('Sledovanie úbytku hmotnosti'!C106=0),TRUE)","v":true},{"$f":"IF(A86,0,IF('Sledovanie úbytku hmotnosti'!B107=0,'Sledovanie úbytku hmotnosti'!B106+5,'Sledovanie úbytku hmotnosti'!B107))","v":"00:00:00"},{"$f":"'Sledovanie úbytku hmotnosti'!C107","v":0}]
[{"$f":"IF(('Sledovanie úbytku hmotnosti'!C108=0)*('Sledovanie úbytku hmotnosti'!C107=0),TRUE)","v":true},{"$f":"IF(A87,0,IF('Sledovanie úbytku hmotnosti'!B108=0,'Sledovanie úbytku hmotnosti'!B107+5,'Sledovanie úbytku hmotnosti'!B108))","v":"00:00:00"},{"$f":"'Sledovanie úbytku hmotnosti'!C108","v":0}]
[{"$f":"IF(('Sledovanie úbytku hmotnosti'!C109=0)*('Sledovanie úbytku hmotnosti'!C108=0),TRUE)","v":true},{"$f":"IF(A88,0,IF('Sledovanie úbytku hmotnosti'!B109=0,'Sledovanie úbytku hmotnosti'!B108+5,'Sledovanie úbytku hmotnosti'!B109))","v":"00:00:00"},{"$f":"'Sledovanie úbytku hmotnosti'!C109","v":0}]
[{"$f":"IF(('Sledovanie úbytku hmotnosti'!C110=0)*('Sledovanie úbytku hmotnosti'!C109=0),TRUE)","v":true},{"$f":"IF(A89,0,IF('Sledovanie úbytku hmotnosti'!B110=0,'Sledovanie úbytku hmotnosti'!B109+5,'Sledovanie úbytku hmotnosti'!B110))","v":"00:00:00"},{"$f":"'Sledovanie úbytku hmotnosti'!C110","v":0}]
[{"$f":"IF(('Sledovanie úbytku hmotnosti'!C111=0)*('Sledovanie úbytku hmotnosti'!C110=0),TRUE)","v":true},{"$f":"IF(A90,0,IF('Sledovanie úbytku hmotnosti'!B111=0,'Sledovanie úbytku hmotnosti'!B110+5,'Sledovanie úbytku hmotnosti'!B111))","v":"00:00:00"},{"$f":"'Sledovanie úbytku hmotnosti'!C111","v":0}]
[{"$f":"IF(('Sledovanie úbytku hmotnosti'!C112=0)*('Sledovanie úbytku hmotnosti'!C111=0),TRUE)","v":true},{"$f":"IF(A91,0,IF('Sledovanie úbytku hmotnosti'!B112=0,'Sledovanie úbytku hmotnosti'!B111+5,'Sledovanie úbytku hmotnosti'!B112))","v":"00:00:00"},{"$f":"'Sledovanie úbytku hmotnosti'!C112","v":0}]
[{"$f":"IF(('Sledovanie úbytku hmotnosti'!C113=0)*('Sledovanie úbytku hmotnosti'!C112=0),TRUE)","v":true},{"$f":"IF(A92,0,IF('Sledovanie úbytku hmotnosti'!B113=0,'Sledovanie úbytku hmotnosti'!B112+5,'Sledovanie úbytku hmotnosti'!B113))","v":"00:00:00"},{"$f":"'Sledovanie úbytku hmotnosti'!C113","v":0}]
[{"$f":"IF(('Sledovanie úbytku hmotnosti'!C114=0)*('Sledovanie úbytku hmotnosti'!C113=0),TRUE)","v":true},{"$f":"IF(A93,0,IF('Sledovanie úbytku hmotnosti'!B114=0,'Sledovanie úbytku hmotnosti'!B113+5,'Sledovanie úbytku hmotnosti'!B114))","v":"00:00:00"},{"$f":"'Sledovanie úbytku hmotnosti'!C114","v":0}]
[{"$f":"IF(('Sledovanie úbytku hmotnosti'!C115=0)*('Sledovanie úbytku hmotnosti'!C114=0),TRUE)","v":true},{"$f":"IF(A94,0,IF('Sledovanie úbytku hmotnosti'!B115=0,'Sledovanie úbytku hmotnosti'!B114+5,'Sledovanie úbytku hmotnosti'!B115))","v":"00:00:00"},{"$f":"'Sledovanie úbytku hmotnosti'!C115","v":0}]
[{"$f":"IF(('Sledovanie úbytku hmotnosti'!C116=0)*('Sledovanie úbytku hmotnosti'!C115=0),TRUE)","v":true},{"$f":"IF(A95,0,IF('Sledovanie úbytku hmotnosti'!B116=0,'Sledovanie úbytku hmotnosti'!B115+5,'Sledovanie úbytku hmotnosti'!B116))","v":"00:00:00"},{"$f":"'Sledovanie úbytku hmotnosti'!C116","v":0}]
[{"$f":"IF(('Sledovanie úbytku hmotnosti'!C117=0)*('Sledovanie úbytku hmotnosti'!C116=0),TRUE)","v":true},{"$f":"IF(A96,0,IF('Sledovanie úbytku hmotnosti'!B117=0,'Sledovanie úbytku hmotnosti'!B116+5,'Sledovanie úbytku hmotnosti'!B117))","v":"00:00:00"},{"$f":"'Sledovanie úbytku hmotnosti'!C117","v":0}]
[{"$f":"IF(('Sledovanie úbytku hmotnosti'!C118=0)*('Sledovanie úbytku hmotnosti'!C117=0),TRUE)","v":true},{"$f":"IF(A97,0,IF('Sledovanie úbytku hmotnosti'!B118=0,'Sledovanie úbytku hmotnosti'!B117+5,'Sledovanie úbytku hmotnosti'!B118))","v":"00:00:00"},{"$f":"'Sledovanie úbytku hmotnosti'!C118","v":0}]
[{"$f":"IF(('Sledovanie úbytku hmotnosti'!C119=0)*('Sledovanie úbytku hmotnosti'!C118=0),TRUE)","v":true},{"$f":"IF(A98,0,IF('Sledovanie úbytku hmotnosti'!B119=0,'Sledovanie úbytku hmotnosti'!B118+5,'Sledovanie úbytku hmotnosti'!B119))","v":"00:00:00"},{"$f":"'Sledovanie úbytku hmotnosti'!C119","v":0}]
[{"$f":"IF(('Sledovanie úbytku hmotnosti'!C120=0)*('Sledovanie úbytku hmotnosti'!C119=0),TRUE)","v":true},{"$f":"IF(A99,0,IF('Sledovanie úbytku hmotnosti'!B120=0,'Sledovanie úbytku hmotnosti'!B119+5,'Sledovanie úbytku hmotnosti'!B120))","v":"00:00:00"},{"$f":"'Sledovanie úbytku hmotnosti'!C120","v":0}]
[{"$f":"IF(('Sledovanie úbytku hmotnosti'!C121=0)*('Sledovanie úbytku hmotnosti'!C120=0),TRUE)","v":true},{"$f":"IF(A100,0,IF('Sledovanie úbytku hmotnosti'!B121=0,'Sledovanie úbytku hmotnosti'!B120+5,'Sledovanie úbytku hmotnosti'!B121))","v":"00:00:00"},{"$f":"'Sledovanie úbytku hmotnosti'!C121","v":0}]
[{"$f":"IF(('Sledovanie úbytku hmotnosti'!C122=0)*('Sledovanie úbytku hmotnosti'!C121=0),TRUE)","v":true},{"$f":"IF(A101,0,IF('Sledovanie úbytku hmotnosti'!B122=0,'Sledovanie úbytku hmotnosti'!B121+5,'Sledovanie úbytku hmotnosti'!B122))","v":"00:00:00"},{"$f":"'Sledovanie úbytku hmotnosti'!C122","v":0}]
[{"$f":"IF(('Sledovanie úbytku hmotnosti'!C123=0)*('Sledovanie úbytku hmotnosti'!C122=0),TRUE)","v":true},{"$f":"IF(A102,0,IF('Sledovanie úbytku hmotnosti'!B123=0,'Sledovanie úbytku hmotnosti'!B122+5,'Sledovanie úbytku hmotnosti'!B123))","v":"00:00:00"},{"$f":"'Sledovanie úbytku hmotnosti'!C123","v":0}]
[{"$f":"IF(('Sledovanie úbytku hmotnosti'!C124=0)*('Sledovanie úbytku hmotnosti'!C123=0),TRUE)","v":true},{"$f":"IF(A103,0,IF('Sledovanie úbytku hmotnosti'!B124=0,'Sledovanie úbytku hmotnosti'!B123+5,'Sledovanie úbytku hmotnosti'!B124))","v":"00:00:00"},{"$f":"'Sledovanie úbytku hmotnosti'!C124","v":0}]
[{"$f":"IF(('Sledovanie úbytku hmotnosti'!C125=0)*('Sledovanie úbytku hmotnosti'!C124=0),TRUE)","v":true},{"$f":"IF(A104,0,IF('Sledovanie úbytku hmotnosti'!B125=0,'Sledovanie úbytku hmotnosti'!B124+5,'Sledovanie úbytku hmotnosti'!B125))","v":"00:00:00"},{"$f":"'Sledovanie úbytku hmotnosti'!C125","v":0}]
[{"$f":"IF(('Sledovanie úbytku hmotnosti'!C126=0)*('Sledovanie úbytku hmotnosti'!C125=0),TRUE)","v":true},{"$f":"IF(A105,0,IF('Sledovanie úbytku hmotnosti'!B126=0,'Sledovanie úbytku hmotnosti'!B125+5,'Sledovanie úbytku hmotnosti'!B126))","v":"00:00:00"},{"$f":"'Sledovanie úbytku hmotnosti'!C126","v":0}]
[{"$f":"IF(('Sledovanie úbytku hmotnosti'!C127=0)*('Sledovanie úbytku hmotnosti'!C126=0),TRUE)","v":true},{"$f":"IF(A106,0,IF('Sledovanie úbytku hmotnosti'!B127=0,'Sledovanie úbytku hmotnosti'!B126+5,'Sledovanie úbytku hmotnosti'!B127))","v":"00:00:00"},{"$f":"'Sledovanie úbytku hmotnosti'!C127","v":0}]
[{"$f":"IF(('Sledovanie úbytku hmotnosti'!C128=0)*('Sledovanie úbytku hmotnosti'!C127=0),TRUE)","v":true},{"$f":"IF(A107,0,IF('Sledovanie úbytku hmotnosti'!B128=0,'Sledovanie úbytku hmotnosti'!B127+5,'Sledovanie úbytku hmotnosti'!B128))","v":"00:00:00"},{"$f":"'Sledovanie úbytku hmotnosti'!C128","v":0}]
[{"$f":"IF(('Sledovanie úbytku hmotnosti'!C129=0)*('Sledovanie úbytku hmotnosti'!C128=0),TRUE)","v":true},{"$f":"IF(A108,0,IF('Sledovanie úbytku hmotnosti'!B129=0,'Sledovanie úbytku hmotnosti'!B128+5,'Sledovanie úbytku hmotnosti'!B129))","v":"00:00:00"},{"$f":"'Sledovanie úbytku hmotnosti'!C129","v":0}]